[Event "XXXI Torre Memorial 2019"]
[Site "Merida"]
[Date "2019.12.14"]
[Round "1.7"]
[White "Gonzalez Zamora, Juan Carlos"]
[Black "Gongora Montes, Benjamin"]
[Result "1/2-1/2"]
[ECO "A48"]
[WhiteElo "2535"]
[BlackElo "2216"]
[Annotator "ChessBase"]
[PlyCount "48"]
[EventDate "2019.12.13"]
[EventType "swiss"]
[EventCountry "MEX"]
[SourceTitle "playchess.com"]
[Source "ChessBase"]
[SourceQuality "1"]
[TimeControl "5400+30"]

1. Nf3 {[%emt 0:01:47]} g6 {[%emt 0:00:54]} 2. d4 {[%emt 0:00:30]} Nf6 {[%emt 0:00:30]} 3. c4 {[%emt 0:03:32]} Bg7 {[%emt 0:00:34]} 4. Nc3 {[%emt 0:00:10]} d5 {[%emt 0:00:06]} 5. cxd5 {[%emt 0:01:22]} Nxd5 {[%emt 0:00:04]} 6. Bd2 {[%emt 0:00:59]} Nf4 {[%emt 0:05:41]} 7. Bxf4 {[%emt 0:00:20]} Nc6 {[%emt 0:00:30]} 8. e3 {[%emt 0:00:09]} O-O {[%emt 0:00:50]} 9. Bb5 {[%emt 0:03:01]} Bd7 {[%emt 0:05:41]} 10. O-O {[%emt 0:00:24]} Na5 {[%emt 0:12:19]} 11. Rc1 {[%emt 0:01:06]} Rc8 {[%emt 0:00:37]} 12. Qe2 {[%emt 0:01:39]} c5 {[%emt 0:08:45]} 13. Rfd1 {[%emt 0:04:08]} c4 {[%emt 0:06:08]} 14. Ng5 {[%emt 0:04:09]} Bf5 {[%emt 0:03:37]} 15. e4 Bd7 {[%emt 0:00:06]} 16. Bxd7 {[%emt 0:01:41]} Qxd7 {[%emt 0:01:28]} 17. d5 {[%emt 0:04:14]} Qf5 {[%emt 0:01:08]} 18. Na4 {[%emt 0:08:43]} Qxf4 {[%emt 0:00:30]} 19. Nf3 {[%emt 0:00:03]} b5 {[%emt 0:01:26]} 20. Nc3 {[%emt 0:00:06]} b4 {[%emt 0:00:12]} 21. Nb5 {[%emt 0:01:39]} Rc5 {[%emt 0:05:16]} 22. Nxa7 {[%emt 0:03:51]} Ra8 {[%emt 0:06:29]} 23. g3 {[%emt 0:00:32]} Qg4 {[%emt 0:11:20]} 24. Qe3 {[%emt 0:00:54]} Nb7 {[%emt 0:00:13]} 1/2-1/2

[Event "XXXI Torre Memorial 2019"]
[Site "Merida"]
[Date "2019.12.14"]
[Round "1.9"]
[White "Obregon Rivero, Juan Carlos"]
[Black "Morales Garcia, Sergio Joshafatt"]
[Result "0-1"]
[ECO "A07"]
[WhiteElo "2513"]
[BlackElo "2209"]
[Annotator "ChessBase"]
[PlyCount "115"]
[EventDate "2019.12.13"]
[EventType "swiss"]
[EventCountry "MEX"]
[SourceTitle "playchess.com"]
[Source "ChessBase"]
[SourceQuality "1"]
[TimeControl "5400+30"]

1. Nf3 {[%emt 0:01:15]} Nf6 {[%emt 0:00:00]} 2. g3 {[%emt 0:00:10]} d5 {[%emt 0:03:11]} 3. Bg2 {[%emt 0:00:09]} c6 {[%emt 0:01:27]} 4. O-O {[%emt 0:00:12]} Bg4 {[%emt 0:00:12]} 5. d4 {[%emt 0:00:24]} Nbd7 {[%emt 0:00:22]} 6. c4 {[%emt 0:00:29]} e6 {[%emt 0:00:06]} 7. Qb3 {[%emt 0:00:56]} Qb6 {[%emt 0:00:27]} 8. Nc3 {[%emt 0:00:12]} h6 {[%emt 0:00:22]} 9. c5 {[%emt 0:00:35]} Qc7 {[%emt 0:00:43]} 10. Bf4 {[%emt 0:00:20]} Qc8 {[%emt 0:00:04]} 11. Rac1 {[%emt 0:01:25]} Be7 {[%emt 0:00:12]} 12. Nd2 {[%emt 0:04:01]} O-O {[%emt 0:18:50]} 13. e4 {[%emt 0:02:43]} Re8 {[%emt 0:01:31]} 14. e5 {[%emt 0:01:39]} Nh7 {[%emt 0:00:51]} 15. h3 {[%emt 0:00:10]} Bf5 {[%emt 0:00:17]} 16. g4 {[%emt 0:00:14]} Bg6 {[%emt 0:02:14]} 17. Bg3 {[%emt 0:00:22]} f5 {[%emt 0:00:57]} 18. f4 {[%emt 0:01:35]} Kh8 {[%emt 0:00:55]} 19. Nd1 {[%emt 0:00:24]} Rg8 {[%emt 0:02:57]} 20. Ne3 {[%emt 0:00:34]} Nhf8 {[%emt 0:00:09]} 21. Nf3 {[%emt 0:18:50]} Bh7 {[%emt 0:03:34]} 22. Rf2 {[%emt 0:03:45]} Qc7 {[%emt 0:08:44]} 23. gxf5 {[%emt 0:02:56]} Bxf5 {[%emt 0:00:05]} 24. h4 {[%emt 0:06:24]} g6 {[%emt 0:01:39]} 25. h5 {[%emt 0:01:27]} gxh5 {[%emt 0:04:36]} 26. Nxf5 {[%emt 0:01:01]} exf5 {[%emt 0:00:03]} 27. Bh2 {[%emt 0:01:34]} Ne6 {[%emt 0:00:54]} 28. Kh1 {[%emt 0:01:01]} Raf8 {[%emt 0:08:14]} 29. Bh3 {[%emt 0:00:53]} Rf7 {[%emt 0:02:06]} 30. Qd3 {[%emt 0:00:25]} Rg4 {[%emt 0:00:13]} 31. Rg1 {[%emt 0:03:24]} Ndf8 {[%emt 0:04:58]} 32. Bxg4 {[%emt 0:01:11]} hxg4 {[%emt 0:00:03]} 33. Ne1 {[%emt 0:00:55]} h5 {[%emt 0:02:10]} 34. Nc2 {[%emt 0:01:45]} h4 {[%emt 0:02:31]} 35. Rfg2 {[%emt 0:03:43]} Qd7 36. Ne3 {[%emt 0:03:45]} Ng7 {[%emt 0:04:55]} 37. b4 {[%emt 0:02:12]} Nfe6 {[%emt 0:01:37]} 38. Nxg4 {[%emt 0:01:06]} fxg4 {[%emt 0:05:08]} 39. Qg6 {[%emt 0:00:02]} Bd8 {[%emt 0:06:49]} 40. Rxg4 {[%emt 0:03:30]} Nxd4 {[%emt 0:01:49]} 41. Qd3 {[%emt 0:11:31]} Ndf5 {[%emt 0:01:34]} 42. Rg6 {[%emt 0:00:26]} d4 {[%emt 0:06:57]} 43. R1g2 {[%emt 0:00:30]} Qd5 {[%emt 0:01:16]} 44. Kg1 {[%emt 0:00:01]} b6 {[%emt 0:01:57]} 45. cxb6 {[%emt 0:04:11]} axb6 {[%emt 0:00:53]} 46. Qd1 {[%emt 0:05:15]} c5 {[%emt 0:02:24]} 47. e6 {[%emt 0:02:45]} Ra7 {[%emt 0:00:26]} 48. bxc5 {[%emt 0:09:14]} bxc5 {[%emt 0:00:04]} 49. Rb2 {[%emt 0:00:28]} Rxa2 {[%emt 0:00:55]} 50. Rxa2 {[%emt 0:02:08]} Qxa2 {[%emt 0:00:01]} 51. Qe1 {[%emt 0:00:22]} Be7 {[%emt 0:01:15]} 52. Rg2 {[%emt 0:00:56]} Qd5 {[%emt 0:00:22]} 53. Qe5 {[%emt 0:00:26]} Qxe5 {[%emt 0:00:21]} 54. fxe5 {[%emt 0:00:01]} c4 {[%emt 0:00:21]} 55. Bf4 {[%emt 0:00:34]} Nxe6 {[%emt 0:00:24]} 56. Bc1 {[%emt 0:00:01]} c3 {[%emt 0:00:15]} 57. Rg6 {[%emt 0:01:27]} d3 {[%emt 0:00:19]} 58. Rg2 {[%emt 0:00:19]} 0-1

[Event "XXXI Torre Memorial 2019"]
[Site "Merida"]
[Date "2019.12.14"]
[Round "1.11"]
[White "Santiago, Yago De Moura"]
[Black "Gonzalez Ochoa, Yoana"]
[Result "1-0"]
[ECO "D11"]
[WhiteElo "2479"]
[BlackElo "2200"]
[Annotator "ChessBase"]
[PlyCount "101"]
[EventDate "2019.12.13"]
[EventType "swiss"]
[EventCountry "MEX"]
[SourceTitle "playchess.com"]
[Source "ChessBase"]
[SourceQuality "1"]
[TimeControl "5400+30"]

1. d4 {[%emt 0:07:11]} d5 {[%emt 0:00:18]} 2. c4 {[%emt 0:00:20]} c6 {[%emt 0:00:08]} 3. Nf3 {[%emt 0:00:12]} Nf6 {[%emt 0:00:08]} 4. Qc2 {[%emt 0:00:45]} g6 {[%emt 0:00:28]} 5. Bf4 {[%emt 0:01:50]} Bg7 {[%emt 0:00:19]} 6. e3 {[%emt 0:00:25]} O-O {[%emt 0:00:28]} 7. Bd3 {[%emt 0:03:29]} dxc4 {[%emt 0:00:28]} 8. Bxc4 {[%emt 0:01:57]} Bf5 {[%emt 0:00:29]} 9. Qb3 {[%emt 0:02:29]} b5 {[%emt 0:02:32]} 10. Be2 {[%emt 0:00:24]} Qa5+ {[%emt 0:01:35]} 11. Nc3 {[%emt 0:01:49]} Be6 {[%emt 0:00:50]} 12. Qd1 {[%emt 0:16:41]} b4 {[%emt 0:04:56]} 13. Na4 {[%emt 0:06:55]} b3+ {[%emt 0:02:50]} 14. Nc3 {[%emt 0:00:43]} bxa2 {[%emt 0:01:18]} 15. O-O {[%emt 0:01:01]} h6 {[%emt 0:08:05]} 16. Nxa2 {[%emt 0:04:15]} Bxa2 {[%emt 0:01:58]} 17. Bc4 {[%emt 0:00:25]} Qb4 {[%emt 0:00:39]} 18. Bxa2 {[%emt 0:00:16]} Nd5 {[%emt 0:00:52]} 19. Qc2 {[%emt 0:17:25]} Nxf4 {[%emt 0:01:00]} 20. exf4 {[%emt 0:00:02]} e6 {[%emt 0:00:26]} 21. h4 {[%emt 0:00:40]} h5 {[%emt 0:01:33]} 22. Bb1 {[%emt 0:02:15]} Qd6 {[%emt 0:01:24]} 23. Ra5 {[%emt 0:00:41]} Qxf4 {[%emt 0:02:35]} 24. Rxh5 {[%emt 0:00:39]} Rd8 {[%emt 0:04:36]} 25. Ra5 {[%emt 0:02:50]} Rd5 {[%emt 0:01:06]} 26. Rxd5 {[%emt 0:00:32]} exd5 {[%emt 0:00:43]} 27. h5 {[%emt 0:04:12]} gxh5 {[%emt 0:00:13]} 28. Re1 {[%emt 0:01:02]} Nd7 {[%emt 0:01:20]} 29. Qxc6 {[%emt 0:03:13]} Nb6 {[%emt 0:00:07]} 30. Qc2 {[%emt 0:11:36]} Rc8 {[%emt 0:01:10]} 31. Qd1 {[%emt 0:00:08]} Nc4 {[%emt 0:02:50]} 32. g3 {[%emt 0:01:22]} Qg4 {[%emt 0:00:20]} 33. Qd3 {[%emt 0:01:49]} Nxb2 {[%emt 0:04:00]} 34. Qh7+ {[%emt 0:00:56]} Kf8 {[%emt 0:00:01]} 35. Ne5 {[%emt 0:01:00]} Bxe5 {[%emt 0:01:20]} 36. Rxe5 {[%emt 0:02:43]} Qg7 {[%emt 0:07:15]} 37. Qf5 {[%emt 0:00:12]} Qg4 {[%emt 0:01:36]} 38. Qh7 {[%emt 0:00:28]} Qg7 {[%emt 0:00:29]} 39. Qxh5 {[%emt 0:00:48]} Rc1+ {[%emt 0:01:07]} 40. Kg2 {[%emt 0:00:01]} Rxb1 {[%emt 0:00:43]} 41. Qf5 {[%emt 0:03:18]} Qg6 {[%emt 0:03:51]} 42. Qc8+ {[%emt 0:00:15]} Kg7 {[%emt 0:00:02]} 43. Qd8 {[%emt 0:01:11]} a5 {[%emt 0:24:39]} 44. Rg5 {[%emt 0:00:12]} a4 {[%emt 0:00:05]} 45. Rxg6+ {[%emt 0:00:05]} fxg6 {[%emt 0:00:46]} 46. Qc7+ {[%emt 0:00:42]} Kf6 {[%emt 0:00:34]} 47. Qe5+ {[%emt 0:01:12]} Kf7 {[%emt 0:00:11]} 48. Qxd5+ {[%emt 0:00:06]} Kg7 {[%emt 0:00:04]} 49. Qe5+ {[%emt 0:00:09]} Kh7 {[%emt 0:00:09]} 50. Qc7+ {[%emt 0:00:05]} Kh6 {[%emt 0:00:11]} 51. Qc2 {[%emt 0:00:06]} 1-0

[Event "XXXI Torre Memorial 2019"]
[Site "Merida"]
[Date "2019.12.14"]
[Round "1.12"]
[White "Arribas Robaina, Maritza"]
[Black "Miranda Mesa, Elier"]
[Result "0-1"]
[ECO "B12"]
[WhiteElo "2199"]
[BlackElo "2477"]
[Annotator "ChessBase"]
[PlyCount "62"]
[EventDate "2019.12.13"]
[EventType "swiss"]
[EventCountry "MEX"]
[SourceTitle "playchess.com"]
[Source "ChessBase"]
[SourceQuality "1"]
[TimeControl "5400+30"]

1. e4 {[%emt 0:00:00]} c6 {[%emt 0:01:04]} 2. d4 {[%emt 0:00:00]} d5 {[%emt 0:00:09]} 3. e5 {[%emt 0:00:14]} Bf5 {[%emt 0:00:12]} 4. Nf3 {[%emt 0:00:22]} e6 {[%emt 0:00:08]} 5. Be2 {[%emt 0:01:06]} Ne7 {[%emt 0:00:46]} 6. O-O {[%emt 0:03:10]} Ng6 {[%emt 0:00:56]} 7. Be3 {[%emt 0:01:23]} Nd7 {[%emt 0:00:19]} 8. Nbd2 {[%emt 0:00:48]} f6 {[%emt 0:00:21]} 9. exf6 {[%emt 0:06:30]} Qxf6 {[%emt 0:01:17]} 10. Bg5 {[%emt 0:01:11]} Qf7 {[%emt 0:00:45]} 11. Nh4 {[%emt 0:01:58]} Bd6 {[%emt 0:22:04]} 12. Bh5 {[%emt 0:05:56]} h6 {[%emt 0:11:26]} 13. Nxg6 {[%emt 0:16:48]} Bxg6 {[%emt 0:00:43]} 14. Bxg6 {[%emt 0:00:06]} Qxg6 {[%emt 0:00:03]} 15. Bh4 {[%emt 0:00:48]} O-O {[%emt 0:06:27]} 16. Nf3 {[%emt 0:02:52]} e5 {[%emt 0:04:27]} 17. dxe5 {[%emt 0:01:53]} Nxe5 {[%emt 0:00:07]} 18. Nxe5 {[%emt 0:00:38]} Bxe5 {[%emt 0:00:05]} 19. c3 {[%emt 0:00:54]} Rae8 {[%emt 0:09:55]} 20. Bg3 {[%emt 0:03:47]} Bf6 {[%emt 0:06:53]} 21. Re1 {[%emt 0:03:15]} h5 {[%emt 0:04:29]} 22. Rxe8 {[%emt 0:04:15]} Rxe8 {[%emt 0:00:11]} 23. h3 {[%emt 0:00:12]} Qf5 {[%emt 0:04:13]} 24. Qd2 {[%emt 0:01:49]} Bg5 {[%emt 0:07:38]} 25. Qd1 {[%emt 0:02:59]} h4 {[%emt 0:00:53]} 26. Bh2 {[%emt 0:03:48]} Qe4 {[%emt 0:01:00]} 27. Bd6 {[%emt 0:08:16]} Re6 {[%emt 0:05:55]} 28. Bb8 {[%emt 0:02:52]} a6 {[%emt 0:06:27]} 29. Ba7 {[%emt 0:03:09]} Bf4 {[%emt 0:00:51]} 30. Qd4 {[%emt 0:10:49]} Qe5 31. Qd1 Qe4 0-1

[Event "XXXI Torre Memorial 2019"]
[Site "Merida"]
[Date "2019.12.14"]
[Round "1.13"]
[White "Hevia Alejano, Carlos Antonio"]
[Black "Corrales Jimenez, Zenia"]
[Result "1-0"]
[ECO "A16"]
[WhiteElo "2465"]
[BlackElo "2197"]
[Annotator "ChessBase"]
[PlyCount "125"]
[EventDate "2019.12.13"]
[EventType "swiss"]
[EventCountry "MEX"]
[SourceTitle "playchess.com"]
[Source "ChessBase"]
[SourceQuality "1"]
[TimeControl "5400+30"]

1. c4 {[%emt 0:01:51]} Nf6 {[%emt 0:00:25]} 2. Nc3 {[%emt 0:03:14]} d5 {[%emt 0:00:25]} 3. cxd5 {[%emt 0:00:04]} Nxd5 {[%emt 0:00:06]} 4. Nf3 {[%emt 0:00:58]} g6 {[%emt 0:01:58]} 5. Qa4+ {[%emt 0:03:13]} Nc6 {[%emt 0:03:54]} 6. Nxd5 {[%emt 0:08:26]} Qxd5 {[%emt 0:00:06]} 7. e4 {[%emt 0:00:05]} Qd6 {[%emt 0:10:19]} 8. Bb5 {[%emt 0:07:09]} Bd7 {[%emt 0:04:44]} 9. d4 {[%emt 0:01:53]} Qb4+ {[%emt 0:04:57]} 10. Bd2 {[%emt 0:01:26]} Qxa4 {[%emt 0:00:12]} 11. Bxa4 {[%emt 0:00:02]} Bg7 {[%emt 0:00:47]} 12. Bc3 {[%emt 0:04:04]} Ne5 {[%emt 0:04:17]} 13. Bxd7+ {[%emt 0:10:52]} Nxd7 {[%emt 0:00:06]} 14. Rc1 {[%emt 0:00:06]} c6 {[%emt 0:09:24]} 15. Ke2 {[%emt 0:03:24]} O-O {[%emt 0:01:49]} 16. Rhd1 {[%emt 0:06:38]} a5 {[%emt 0:10:04]} 17. d5 {[%emt 0:04:27]} Bxc3 {[%emt 0:10:55]} 18. Rxc3 {[%emt 0:00:23]} Nf6 {[%emt 0:01:20]} 19. dxc6 {[%emt 0:01:44]} bxc6 {[%emt 0:12:18]} 20. Nd2 {[%emt 0:06:43]} Rfb8 {[%emt 0:03:01]} 21. Rc2 {[%emt 0:02:09]} a4 {[%emt 0:01:00]} 22. f3 {[%emt 0:00:06]} Ra5 {[%emt 0:03:15]} 23. Nb1 {[%emt 0:02:49]} Rh5 {[%emt 0:03:03]} 24. h3 {[%emt 0:00:04]} Rhb5 {[%emt 0:00:03]} 25. Rdd2 {[%emt 0:00:05]} Nh5 {[%emt 0:00:09]} 26. Nc3 {[%emt 0:00:19]} Ra5 {[%emt 0:03:49]} 27. Rd4 {[%emt 0:00:40]} a3 {[%emt 0:01:07]} 28. b3 {[%emt 0:00:23]} Rc5 {[%emt 0:00:33]} 29. Rdd2 {[%emt 0:00:52]} Nf4+ {[%emt 0:02:02]} 30. Ke3 {[%emt 0:00:08]} e5 {[%emt 0:00:04]} 31. Nb1 {[%emt 0:04:13]} Ra5 {[%emt 0:02:40]} 32. h4 {[%emt 0:05:25]} Ne6 {[%emt 0:00:46]} 33. Rxc6 {[%emt 0:04:56]} Nd4 {[%emt 0:02:05]} 34. Rd6 {[%emt 0:00:43]} Nxb3 {[%emt 0:00:46]} 35. Rd8+ {[%emt 0:00:29]} Rxd8 {[%emt 0:00:01]} 36. Rxd8+ {[%emt 0:00:04]} Kg7 {[%emt 0:00:03]} 37. Rd5 {[%emt 0:00:16]} Ra6 {[%emt 0:02:14]} 38. Rxe5 {[%emt 0:02:12]} Nc1 {[%emt 0:02:12]} 39. Nc3 {[%emt 0:00:04]} Rb6 {[%emt 0:01:07]} 40. Rd5 {[%emt 0:00:28]} Rb2 {[%emt 0:00:35]} 41. Rd2 {[%emt 0:00:05]} f5 {[%emt 0:00:29]} 42. Rxb2 {[%emt 0:01:31]} axb2 {[%emt 0:00:02]} 43. a4 {[%emt 0:00:15]} Nb3 {[%emt 0:01:03]} 44. Kd3 {[%emt 0:00:41]} fxe4+ {[%emt 0:00:38]} 45. fxe4 {[%emt 0:00:06]} b1=Q+ {[%emt 0:00:33]} 46. Nxb1 {[%emt 0:00:03]} Nc5+ {[%emt 0:00:05]} 47. Kd4 {[%emt 0:00:08]} Nxa4 {[%emt 0:00:02]} 48. Ke5 {[%emt 0:00:22]} Kf7 {[%emt 0:00:55]} 49. Kd6 {[%emt 0:00:28]} Nb2 {[%emt 0:00:11]} 50. Nd2 {[%emt 0:00:03]} Nd3 {[%emt 0:00:17]} 51. e5 {[%emt 0:00:19]} Nf4 {[%emt 0:00:02]} 52. g3 {[%emt 0:00:11]} Ne6 {[%emt 0:00:01]} 53. Ne4 {[%emt 0:00:08]} h6 {[%emt 0:00:31]} 54. Nc5 {[%emt 0:00:43]} Nd4 {[%emt 0:00:54]} 55. Kd7 {[%emt 0:00:10]} g5 {[%emt 0:00:33]} 56. h5 {[%emt 0:00:34]} Nf5 {[%emt 0:00:35]} 57. e6+ {[%emt 0:00:54]} Kf8 {[%emt 0:00:19]} 58. g4 {[%emt 0:00:13]} Ne7 {[%emt 0:00:05]} 59. Ne4 {[%emt 0:00:25]} Nd5 {[%emt 0:00:11]} 60. Nd6 {[%emt 0:00:21]} Nf6+ {[%emt 0:01:03]} 61. Kd8 {[%emt 0:00:08]} Nd5 {[%emt 0:00:41]} 62. Nf5 {[%emt 0:00:09]} Nf6 {[%emt 0:00:16]} 63. e7+ {[%emt 0:00:05]} 1-0

[Event "XXXI Torre Memorial 2019"]
[Site "Merida"]
[Date "2019.12.14"]
[Round "1.14"]
[White "Obregon Garcia, Roxangel"]
[Black "Rodriguez Vila, Andres"]
[Result "0-1"]
[ECO "C03"]
[WhiteElo "2171"]
[BlackElo "2463"]
[Annotator "ChessBase"]
[PlyCount "74"]
[EventDate "2019.12.13"]
[EventType "swiss"]
[EventCountry "MEX"]
[SourceTitle "playchess.com"]
[Source "ChessBase"]
[SourceQuality "1"]
[TimeControl "5400+30"]

1. e4 {[%emt 0:00:00]} e6 {[%emt 0:06:54]} 2. d4 {[%emt 0:00:00]} d5 {[%emt 0:00:05]} 3. Nd2 {[%emt 0:00:00]} Be7 {[%emt 0:00:04]} 4. e5 {[%emt 0:00:00]} c5 {[%emt 0:00:07]} 5. c3 {[%emt 0:00:00]} Nc6 {[%emt 0:00:07]} 6. Ndf3 {[%emt 0:00:20]} Qc7 {[%emt 0:01:28]} 7. Bd3 {[%emt 0:01:13]} Bd7 {[%emt 0:00:12]} 8. Ne2 {[%emt 0:01:12]} cxd4 {[%emt 0:00:06]} 9. cxd4 {[%emt 0:00:13]} Nb4 {[%emt 0:00:24]} 10. Bb1 {[%emt 0:01:26]} Bb5 {[%emt 0:00:21]} 11. Nc3 {[%emt 0:02:31]} Ba6 {[%emt 0:02:48]} 12. Bg5 {[%emt 0:21:18]} Rc8 {[%emt 0:03:28]} 13. h4 {[%emt 0:10:27]} Qc4 {[%emt 0:02:26]} 14. Qd2 {[%emt 0:07:45]} Bxg5 {[%emt 0:06:55]} 15. Nxg5 {[%emt 0:04:41]} Nh6 {[%emt 0:02:49]} 16. Nf3 {[%emt 0:16:38]} O-O {[%emt 0:00:55]} 17. a3 {[%emt 0:00:59]} Nd3+ {[%emt 0:00:15]} 18. Bxd3 {[%emt 0:00:03]} Qxd3 {[%emt 0:00:04]} 19. Qxd3 {[%emt 0:00:05]} Bxd3 {[%emt 0:00:11]} 20. O-O-O {[%emt 0:06:17]} Be2 {[%emt 0:00:15]} 21. Rd2 {[%emt 0:00:09]} Bxf3 {[%emt 0:00:05]} 22. gxf3 {[%emt 0:00:01]} Nf5 {[%emt 0:00:32]} 23. Kb1 {[%emt 0:06:44]} Rc4 {[%emt 0:01:18]} 24. Rhd1 {[%emt 0:00:19]} Nxh4 {[%emt 0:02:30]} 25. Nb5 {[%emt 0:00:29]} f6 {[%emt 0:01:47]} 26. Nd6 {[%emt 0:03:24]} Rc7 {[%emt 0:00:29]} 27. f4 {[%emt 0:00:40]} fxe5 {[%emt 0:01:06]} 28. fxe5 {[%emt 0:00:14]} g5 {[%emt 0:01:21]} 29. Re2 {[%emt 0:06:46]} h5 {[%emt 0:01:34]} 30. Rh1 {[%emt 0:03:31]} a6 {[%emt 0:00:10]} 31. f4 {[%emt 0:02:51]} Rxf4 {[%emt 0:00:23]} 32. Ne8 {[%emt 0:00:01]} Rcf7 {[%emt 0:01:14]} 33. Nf6+ {[%emt 0:00:08]} R7xf6 {[%emt 0:00:12]} 34. exf6 {[%emt 0:00:06]} Kf7 {[%emt 0:00:27]} 35. Rc2 {[%emt 0:01:40]} Rxf6 {[%emt 0:00:21]} 36. Rc7+ {[%emt 0:00:35]} Kg6 {[%emt 0:00:05]} 37. Rxb7 {[%emt 0:00:03]} Nf3 {[%emt 0:00:06]} 0-1

[Event "XXXI Torre Memorial 2019"]
[Site "Merida"]
[Date "2019.12.14"]
[Round "1.15"]
[White "Fernandez De La Vara, Arnaldo"]
[Black "Quiroga Jaquez, Angel Ivan"]
[Result "1-0"]
[ECO "D30"]
[WhiteElo "2463"]
[BlackElo "2163"]
[Annotator "ChessBase"]
[PlyCount "47"]
[EventDate "2019.12.13"]
[EventType "swiss"]
[EventCountry "MEX"]
[SourceTitle "playchess.com"]
[Source "ChessBase"]
[SourceQuality "1"]
[TimeControl "5400+30"]

1. Nf3 {[%emt 0:00:18]} d5 {[%emt 0:00:44]} 2. c4 {[%emt 0:00:34]} c6 {[%emt 0:01:50]} 3. d4 {[%emt 0:00:47]} Nf6 {[%emt 0:01:52]} 4. e3 {[%emt 0:01:08]} e6 {[%emt 0:05:14]} 5. Nbd2 {[%emt 0:00:27]} Nbd7 {[%emt 0:00:35]} 6. b3 {[%emt 0:00:37]} Be7 {[%emt 0:06:10]} 7. Bb2 {[%emt 0:02:42]} O-O {[%emt 0:00:09]} 8. Bd3 {[%emt 0:00:16]} b6 {[%emt 0:02:27]} 9. O-O {[%emt 0:02:54]} Bb7 {[%emt 0:00:32]} 10. Qe2 {[%emt 0:01:26]} Rc8 {[%emt 0:11:06]} 11. Rac1 {[%emt 0:03:17]} Re8 {[%emt 0:12:54]} 12. Rfd1 {[%emt 0:04:33]} Qc7 {[%emt 0:07:15]} 13. Ne5 {[%emt 0:07:39]} dxc4 {[%emt 0:13:38]} 14. Ndxc4 {[%emt 0:06:05]} b5 {[%emt 0:02:25]} 15. Nd2 {[%emt 0:02:46]} a6 {[%emt 0:06:57]} 16. Ndf3 {[%emt 0:01:19]} Qa5 {[%emt 0:03:57]} 17. Ng5 {[%emt 0:02:16]} Qxa2 {[%emt 0:05:00]} 18. Qc2 {[%emt 0:07:25]} Ba3 {[%emt 0:04:35]} 19. Bxh7+ {[%emt 0:02:04]} Kf8 {[%emt 0:00:05]} 20. Bxa3+ {[%emt 0:00:51]} Qxa3 {[%emt 0:00:06]} 21. Ngxf7 {[%emt 0:01:56]} Nxh7 {[%emt 0:06:06]} 22. Qxh7 {[%emt 0:01:09]} Nf6 {[%emt 0:00:02]} 23. Qh8+ {[%emt 0:00:32]} Ng8 {[%emt 0:00:58]} 24. Ng5 1-0

[Event "XXXI Torre Memorial 2019"]
[Site "Merida"]
[Date "2019.12.14"]
[Round "1.16"]
[White "Huertas Soris, Ramon Antonio"]
[Black "Kevlishvili, Robby"]
[Result "0-1"]
[ECO "B90"]
[WhiteElo "2155"]
[BlackElo "2457"]
[Annotator "ChessBase"]
[PlyCount "78"]
[EventDate "2019.12.13"]
[EventType "swiss"]
[EventCountry "MEX"]
[SourceTitle "playchess.com"]
[Source "ChessBase"]
[SourceQuality "1"]
[TimeControl "5400+30"]

1. e4 {[%emt 0:04:28]} c5 {[%emt 0:01:00]} 2. Nf3 {[%emt 0:00:16]} d6 {[%emt 0:00:07]} 3. d4 {[%emt 0:00:18]} cxd4 {[%emt 0:00:06]} 4. Nxd4 {[%emt 0:00:06]} Nf6 {[%emt 0:00:04]} 5. Nc3 {[%emt 0:00:08]} a6 {[%emt 0:00:07]} 6. Be3 {[%emt 0:00:47]} e5 {[%emt 0:00:32]} 7. Nb3 {[%emt 0:00:10]} Be6 {[%emt 0:00:10]} 8. f4 {[%emt 0:00:11]} exf4 {[%emt 0:19:02]} 9. Bxf4 {[%emt 0:00:19]} Be7 {[%emt 0:00:06]} 10. Qd2 {[%emt 0:00:15]} Nc6 {[%emt 0:01:06]} 11. O-O-O {[%emt 0:00:13]} Ne5 {[%emt 0:00:58]} 12. Nd4 {[%emt 0:10:20]} O-O {[%emt 0:02:40]} 13. Nf5 {[%emt 0:02:16]} Bxf5 {[%emt 0:07:16]} 14. exf5 {[%emt 0:01:53]} b5 {[%emt 0:02:10]} 15. Kb1 {[%emt 0:07:33]} Qc8 {[%emt 0:06:30]} 16. Bd3 {[%emt 0:03:46]} b4 {[%emt 0:01:32]} 17. Ne4 {[%emt 0:05:50]} Nxe4 {[%emt 0:05:08]} 18. Bxe4 {[%emt 0:00:20]} Nc4 {[%emt 0:04:33]} 19. Qd3 {[%emt 0:03:23]} Bf6 {[%emt 0:00:55]} 20. Bc1 {[%emt 0:02:05]} Rb8 {[%emt 0:00:26]} 21. Bd5 {[%emt 0:01:14]} Nb6 {[%emt 0:01:32]} 22. g4 {[%emt 0:06:06]} Be5 {[%emt 0:01:40]} 23. Rhf1 {[%emt 0:04:28]} a5 {[%emt 0:04:45]} 24. g5 {[%emt 0:06:43]} a4 {[%emt 0:02:30]} 25. Rf3 {[%emt 0:03:40]} b3 {[%emt 0:09:11]} 26. cxb3 {[%emt 0:05:12]} Nxd5 {[%emt 0:00:15]} 27. Qxd5 {[%emt 0:00:20]} axb3 {[%emt 0:00:05]} 28. Rxb3 {[%emt 0:16:57]} Qxf5+ {[%emt 0:00:25]} 29. Qd3 {[%emt 0:03:49]} Qe6 {[%emt 0:00:40]} 30. Rxb8 {[%emt 0:00:31]} Rxb8 {[%emt 0:00:05]} 31. h4 {[%emt 0:01:39]} Qg4 {[%emt 0:00:37]} 32. Qd5 {[%emt 0:04:55]} Qxh4 {[%emt 0:02:46]} 33. Rf1 {[%emt 0:00:26]} Rf8 {[%emt 0:00:11]} 34. Qf3 {[%emt 0:01:10]} Qb4 {[%emt 0:01:08]} 35. Qd5 {[%emt 0:01:04]} g6 {[%emt 0:02:27]} 36. a3 {[%emt 0:01:33]} Qb6 {[%emt 0:00:27]} 37. Ka2 {[%emt 0:00:24]} Qc7 {[%emt 0:01:21]} 38. Qd3 {[%emt 0:02:18]} Rb8 {[%emt 0:00:33]} 39. Rd1 {[%emt 0:00:23]} Qxc1 {[%emt 0:00:29]} 0-1